bitfinex/quotes_BTCUSD_20250204
["timestamp","ask_amount","ask_price","bid_price","bid_amount"]
[1738687812645,0.15117,99226.0,99224.0,0.0005742]
[1738687812819,0.004,99225.0,99224.0,0.0005742]
[1738687813019,0.15117,99226.0,99224.0,0.0005742]
[1738687814088,0.001,99225.0,99224.0,0.0005742]
[1738687814275,0.15117,99226.0,99224.0,0.0005742]
[1738687815580,0.15217,99226.0,99224.0,0.0005742]
[1738687816205,0.15117,99226.0,99224.0,0.0005742]
[1738687816423,0.0806,99225.0,99224.0,0.0005742]
[1738687816647,1.5806,99225.0,99224.0,0.0005742]
[1738687818469,1.83298506,99225.0,99224.0,0.0005742]
[1738687819283,1.83798506,99225.0,99224.0,0.0005742]
[1738687819484,1.83798506,99225.0,99222.0,1.0]
[1738687819485,0.01,99223.0,99222.0,0.9401032]
[1738687819842,0.435594,99210.0,99209.0,9e-07]
[1738687820050,0.15,99200.0,99191.0,0.0151381]
[1738687820258,0.15892,99200.0,99191.0,0.0151381]
[1738687820646,0.15,99200.0,99192.0,0.023]
[1738687820814,1.65892,99200.0,99192.0,0.023]
[1738687820987,1.66895986,99200.0,99192.0,0.023]
[1738687821199,1.95907594,99200.0,99191.0,0.0151381]
[1738687821450,1.87883964,99200.0,99191.0,0.0151381]
[1738687821805,1.87883964,99200.0,99192.0,0.023]
[1738687822003,1.87883964,99200.0,99191.0,0.0151381]
[1738687822427,1.77634492,99200.0,99192.0,0.023]
[1738687823041,0.431921,99192.0,99191.0,0.0151381]
[1738687823282,0.311226,99189.0,99188.0,6e-07]
[1738687823441,0.41361106,99189.0,99188.0,6e-07]
[1738687823644,0.52610576,99189.0,99188.0,6e-07]
[1738687824051,2.02610576,99189.0,99188.0,6e-07]
[1738687824500,2.02610576,99189.0,99188.0,0.00014127]
[1738687824728,2.03902576,99189.0,99188.0,0.00014127]
[1738687825102,1.814226,99189.0,99188.0,0.00014127]
[1738687825307,1.673146,99189.0,99188.0,0.00014127]
[1738687825509,0.18318282,99189.0,99188.0,0.00014127]
[1738687825721,0.173146,99189.0,99188.0,0.00014127]
[1738687825924,0.02192,99189.0,99188.0,0.00014127]
[1738687826371,0.00892,99189.0,99188.0,0.00014127]
[1738687826794,0.02192,99189.0,99188.0,0.00014127]
[1738687827017,0.004,99189.0,99188.0,0.02314127]
[1738687827231,1.5,99193.0,99188.0,0.02314127]
[1738687827471,0.005,99189.0,99188.0,0.00014127]
[1738687827674,0.007,99189.0,99188.0,0.00014127]
[1738687827852,0.002,99189.0,99188.0,0.00014127]
[1738687828028,0.007,99189.0,99188.0,0.00014127]
[1738687828239,0.005,99189.0,99188.0,0.00014127]
[1738687828826,0.151222,99192.0,99188.0,0.00014127]
[1738687829060,0.151224,99191.0,99188.0,0.00014127]
[1738687829268,1.651221,99193.0,99188.0,0.00014127]
[1738687829435,1.5,99193.0,99188.0,0.00014127]
[1738687829638,1.501,99193.0,99188.0,0.00014127]
[1738687829842,1.501,99193.0,99189.0,0.023]
[1738687830112,1.501,99193.0,99191.0,0.023]
[1738687830255,1.501,99193.0,99190.0,0.10238506]
[1738687830256,1.501,99193.0,99192.0,0.27660606]
[1738687830889,1.5,99193.0,99192.0,0.27660606]
[1738687831061,1.504,99193.0,99192.0,0.27660606]
[1738687831265,1.501,99193.0,99192.0,0.27660606]
[1738687831641,1.502,99193.0,99192.0,0.27660606]
[1738687831826,0.002,99193.0,99192.0,0.27660606]
[1738687832831,0.001,99193.0,99192.0,0.27660606]
[1738687833249,0.002,99193.0,99192.0,0.27660606]
[1738687833917,0.002,99193.0,99192.0,0.28692599]
[1738687833918,0.001,99193.0,99192.0,0.28692599]
[1738687834130,1.5,99201.0,99200.0,0.151209]
[1738687834381,0.00892,99228.0,99213.0,0.174189]
[1738687834598,0.00892,99228.0,99213.0,0.27657406]
[1738687834810,0.0802363,99236.0,99213.0,0.27657406]
[1738687834811,1.5,99223.0,99222.0,0.151176]
[1738687835031,1.5,99223.0,99222.0,0.023]
[1738687836074,1.5,99223.0,99222.0,0.27656106]
[1738687836280,1.50046727,99223.0,99222.0,0.12538506]
[1738687837122,1.50246727,99223.0,99222.0,0.12538506]
[1738687837331,0.00546727,99223.0,99222.0,0.12538506]
[1738687837552,0.00246727,99223.0,99222.0,0.12538506]
[1738687837754,0.20157,99221.0,99201.0,0.5412]
[1738687837967,0.0763,99222.0,99201.0,0.64358506]
[1738687838186,0.20157,99221.0,99205.0,0.151201]
[1738687838330,0.151199,99207.0,99206.0,0.12538506]
[1738687838594,1.5,99207.0,99186.0,0.0473]
[1738687838794,0.151219,99194.0,99193.0,0.10238506]
[1738687839325,1.5,99194.0,99193.0,0.10238506]
[1738687839578,0.151218,99195.0,99193.0,0.10238506]
[1738687839897,0.0802363,99214.0,99193.0,0.10238506]
[1738687840125,0.151217,99195.0,99193.0,0.10238506]
[1738687840442,0.151217,99195.0,99194.0,0.023]
[1738687840647,0.151217,99195.0,99194.0,0.12538506]
[1738687843110,0.151217,99195.0,99194.0,0.12738506]
[1738687843705,1.651217,99195.0,99194.0,0.12738506]
[1738687844109,1.5,99195.0,99194.0,0.12738506]
[1738687844506,1.651217,99195.0,99194.0,0.025]
[1738687844861,1.660137,99195.0,99194.0,0.002]
[1738687846237,1.660137,99195.0,99188.0,6e-07]
[1738687846238,0.15122,99193.0,99188.0,6e-07]
[1738687846873,1.65122,99193.0,99188.0,6e-07]
[1738687847082,1.75371472,99193.0,99188.0,6e-07]
[1738687847382,1.90371472,99193.0,99188.0,6e-07]
[1738687847593,2.00609978,99193.0,99192.0,0.00024757]
[1738687847803,2.01309978,99193.0,99192.0,0.00024757]
[1738687847960,2.01609978,99193.0,99192.0,0.00024757]
[1738687848159,2.00909978,99193.0,99192.0,0.00024757]
[1738687849259,2.00609978,99193.0,99192.0,0.00024757]
[1738687849694,2.00909978,99193.0,99192.0,0.00024757]
[1738687850186,1.81222,99193.0,99192.0,0.00024757]
[1738687850439,1.80922,99193.0,99192.0,0.00024757]
[1738687850690,1.80422,99193.0,99192.0,0.00024757]
[1738687850907,1.81222,99193.0,99192.0,0.00024757]
[1738687851107,0.151267,99163.0,99152.0,0.201708]
[1738687851357,0.201676,99169.0,99155.0,0.151278]
[1738687851546,0.15,99188.0,99156.0,0.10238506]
[1738687851749,0.0802363,99182.0,99156.0,0.25366006]
[1738687851979,1.5,99181.0,99156.0,0.25366006]
[1738687852155,1.5,99181.0,99156.0,0.10238506]
[1738687852396,0.201666,99174.0,99156.0,0.10238506]
[1738687852609,0.151284,99151.0,99150.0,0.08008473]
[1738687853039,1.651284,99151.0,99150.0,0.10308473]
[1738687853240,1.651284,99151.0,99150.0,0.08008473]
[1738687853660,1.651284,99151.0,99150.0,0.10308473]
[1738687854131,1.501,99151.0,99150.0,0.10308473]
[1738687854301,1.502,99151.0,99150.0,0.10308473]
[1738687855703,1.501,99151.0,99150.0,0.10308473]
[1738687856119,0.152284,99151.0,99150.0,0.10308473]
[1738687856693,0.151284,99151.0,99150.0,0.10308473]
[1738687856867,0.13461733,99151.0,99150.0,0.10308473]
[1738687858144,0.14349733,99151.0,99150.0,0.10308473]
[1738687859554,0.14449733,99151.0,99150.0,0.10308473]
[1738687859765,0.14549733,99151.0,99150.0,0.10308473]
[1738687859983,0.14449733,99151.0,99150.0,0.10308473]
[1738687860157,1.64449733,99151.0,99150.0,0.10308473]
[1738687860359,1.64549733,99151.0,99150.0,0.10308473]
[1738687862219,1.64549733,99151.0,99150.0,0.10319163]
[1738687862627,1.64449733,99151.0,99150.0,0.10319163]
[1738687863264,1.64549733,99151.0,99150.0,0.10319163]
[1738687863459,1.64449733,99151.0,99150.0,0.10319163]
[1738687863691,1.64349733,99151.0,99150.0,0.10319163]
[1738687863893,1.64549733,99151.0,99150.0,0.10319163]
[1738687864116,0.002,99151.0,99150.0,0.35686169]
[1738687864334,0.001,99151.0,99150.0,0.35686169]
[1738687864536,0.001,99151.0,99150.0,0.35839539]
[1738687864742,0.10934551,99180.0,99156.0,0.151276]
[1738687864974,0.151273,99158.0,99157.0,0.10390823]
[1738687865181,0.151273,99158.0,99157.0,0.00152317]
[1738687865358,0.10934551,99170.0,99150.0,0.08019163]
[1738687865359,0.151284,99151.0,99150.0,0.08019163]
[1738687865775,0.152284,99151.0,99150.0,0.08171487]
[1738687865954,0.152284,99151.0,99150.0,0.08019163]
[1738687866390,0.151284,99151.0,99150.0,0.10319163]
[1738687867330,0.160164,99151.0,99150.0,0.10319163]
[1738687867516,0.161164,99151.0,99150.0,0.10319163]
[1738687867713,0.161164,99151.0,99150.0,0.08019163]
[1738687868078,0.163164,99151.0,99150.0,0.08019163]
[1738687868770,0.162164,99151.0,99150.0,0.10319163]
[1738687868979,0.17890827,99151.0,99150.0,0.10319163]
[1738687869216,0.17990827,99151.0,99150.0,0.10319163]
[1738687869914,1.67990827,99151.0,99150.0,0.10319163]
[1738687870379,1.68190827,99151.0,99150.0,0.10319163]
[1738687870615,1.67990827,99151.0,99150.0,0.10319163]
[1738687870841,1.67890827,99151.0,99150.0,0.10319163]
[1738687871066,1.68390827,99151.0,99150.0,0.10319163]
[1738687871316,1.67890827,99151.0,99150.0,0.10319163]
[1738687871539,1.76060827,99151.0,99150.0,0.10319163]
[1738687871779,1.76560827,99151.0,99150.0,0.10319163]
[1738687872334,1.91760827,99151.0,99150.0,0.08019163]
[1738687872812,1.94560544,99151.0,99150.0,0.08019163]
[1738687873060,1.99440544,99151.0,99150.0,0.08019163]
[1738687873245,2.0967905,99151.0,99150.0,0.08019163]
[1738687873395,2.0917905,99151.0,99150.0,0.08019163]
[1738687873607,2.0947905,99151.0,99150.0,0.08019163]
[1738687873808,2.19528522,99151.0,99150.0,0.08019163]
[1738687874208,2.20328522,99151.0,99150.0,0.08019163]
[1738687874411,2.19528522,99151.0,99150.0,0.08019163]
[1738687874810,2.17428805,99151.0,99150.0,0.08019163]
[1738687875086,2.16551276,99151.0,99150.0,0.08019163]
[1738687875302,2.05113804,99151.0,99150.0,0.08019163]
[1738687875510,1.95763298,99151.0,99150.0,0.08019163]
[1738687875709,1.96163298,99151.0,99150.0,0.08019163]
[1738687875843,1.96163298,99151.0,99150.0,0.10319163]
[1738687875844,1.82425298,99151.0,99150.0,0.10319163]
[1738687876043,1.67025298,99151.0,99150.0,0.10319163]
[1738687876466,1.67425298,99151.0,99150.0,0.10319163]
[1738687876668,1.68325298,99151.0,99150.0,0.10319163]
[1738687876878,1.51896898,99151.0,99150.0,0.10319163]
[1738687877266,1.50622471,99151.0,99150.0,0.10319163]
[1738687877500,1.50222471,99151.0,99150.0,0.10319163]
[1738687877879,1.50622471,99151.0,99150.0,0.10467928]
[1738687878079,1.50222471,99151.0,99150.0,0.10467928]
[1738687878279,1.50222471,99151.0,99150.0,0.10319163]
[1738687878527,1.50622471,99151.0,99150.0,0.10319163]
[1738687879259,1.50422471,99151.0,99150.0,0.10319163]
[1738687879472,1.50622471,99151.0,99150.0,0.10319163]
[1738687879670,1.50222471,99151.0,99150.0,0.10319163]
[1738687879874,1.50022471,99151.0,99150.0,0.20557669]
[1738687880087,1.50422471,99151.0,99150.0,0.20706434]
[1738687880496,1.50222471,99151.0,99150.0,0.10467928]
[1738687880651,1.50622471,99151.0,99150.0,0.10319163]
[1738687881063,1.50022471,99151.0,99150.0,0.10319163]
[1738687881406,1.50022471,99151.0,99150.0,0.10419163]
[1738687882170,1.50022471,99151.0,99150.0,0.10319163]
[1738687882578,1.50022471,99151.0,99150.0,0.20557669]
[1738687882995,1.50022471,99151.0,99150.0,0.20704034]
[1738687883309,1.50122471,99151.0,99150.0,0.20704034]
[1738687883504,0.00122471,99151.0,99150.0,0.20704034]
[1738687883695,0.00022471,99151.0,99150.0,0.20704034]
[1738687883947,0.00022471,99151.0,99150.0,0.40484034]
[1738687884199,0.00022471,99151.0,99150.0,0.43621545]
[1738687884598,0.01919444,99195.0,99151.0,0.173]
[1738687884773,0.0091045,99195.0,99181.0,0.174238]
[1738687884975,0.151223,99191.0,99181.0,0.27662306]
[1738687885148,0.0091045,99195.0,99184.0,0.023]
[1738687885346,0.2107275,99195.0,99186.0,0.023]
[1738687885549,1.651229,99187.0,99186.0,0.023]
[1738687885759,0.151249,99174.0,99165.0,0.151262]
[1738687885981,1.5,99187.0,99166.0,0.10238506]
[1738687886359,1.5,99187.0,99172.0,0.023]
[1738687886531,0.151243,99178.0,99174.0,0.023]
[1738687886836,1.5,99187.0,99176.0,0.023]
[1738687887061,1.5,99187.0,99178.0,0.023]
[1738687887269,0.151233,99185.0,99180.0,0.023]
[1738687887467,1.5,99187.0,99184.0,0.023]
[1738687887693,1.5,99187.0,99186.0,0.023]
[1738687888015,0.151241,99180.0,99176.0,0.001]
[1738687888216,1.651229,99187.0,99186.0,0.00141459]
[1738687888416,1.5,99187.0,99178.0,0.023]
[1738687888640,0.151255,99170.0,99161.0,0.151268]
[1738687888842,0.151255,99170.0,99166.0,0.10238506]
[1738687889044,1.5,99169.0,99167.0,0.023]
[1738687889249,1.5,99169.0,99168.0,0.12538506]
[1738687889450,0.151221,99193.0,99179.0,0.201653]
[1738687889688,0.0002245,99195.0,99185.0,0.023]
[1738687889892,0.15123,99187.0,99186.0,0.12538506]
[1738687890455,0.15323,99187.0,99186.0,0.12538506]
[1738687890659,0.15123,99187.0,99186.0,0.023]
[1738687891074,0.15323,99187.0,99186.0,0.023]
[1738687891778,0.15123,99187.0,99186.0,0.023]
[1738687892034,0.15323,99187.0,99186.0,0.023]
[1738687892524,0.002,99187.0,99186.0,0.12538506]
[1738687893239,0.003,99187.0,99186.0,0.12538506]
[1738687893468,0.001,99187.0,99186.0,0.12538506]
[1738687893734,1.5,99187.0,99186.0,0.12538506]
[1738687894026,1.502,99187.0,99186.0,0.12538506]
[1738687894264,1.501,99187.0,99186.0,0.12538506]
[1738687894548,1.502,99187.0,99186.0,0.12538506]
[1738687895034,1.503,99187.0,99186.0,0.12538506]
[1738687895276,1.501,99187.0,99186.0,0.023]
[1738687895516,1.503,99187.0,99186.0,0.023]
[1738687896022,0.15125,99173.0,99172.0,0.040338]
[1738687896274,0.15125,99173.0,99172.0,0.12538506]
[1738687896563,0.15125,99173.0,99172.0,0.12680053]
[1738687896799,0.15125,99173.0,99172.0,0.00141547]
[1738687897069,1.65125,99173.0,99172.0,0.00141547]
[1738687897309,0.151261,99166.0,99165.0,8.473e-05]
[1738687897549,0.151261,99166.0,99165.0,0.10246979]
[1738687897816,0.151261,99166.0,99165.0,0.10389229]
[1738687898065,0.151261,99166.0,99165.0,0.12689229]
[1738687898341,0.151261,99166.0,99165.0,8.473e-05]
[1738687900058,0.151261,99166.0,99165.0,0.00019173]
[1738687900558,0.152261,99166.0,99165.0,0.00019173]
[1738687900799,0.153261,99166.0,99165.0,0.00019173]
[1738687901051,1.653261,99166.0,99165.0,0.00019173]
[1738687901540,1.652261,99166.0,99165.0,0.00019173]
[1738687901760,1.651261,99166.0,99165.0,0.00019173]
[1738687903154,1.732461,99166.0,99165.0,0.00019173]
[1738687903976,1.734461,99166.0,99165.0,0.00019173]
[1738687904186,1.733461,99166.0,99165.0,0.00019173]
[1738687904473,2.03225572,99166.0,99165.0,0.00019173]
[1738687904729,0.430384,99151.0,99150.0,0.0801069]
[1738687904938,0.53276906,99151.0,99150.0,0.08024756]
[1738687905364,2.03276906,99151.0,99150.0,0.08024756]
[1738687905566,2.0814667,99151.0,99150.0,0.08024756]
[1738687905697,2.18396142,99151.0,99150.0,0.08024756]
[1738687906680,2.0814667,99151.0,99150.0,0.08024756]
[1738687906884,2.09160379,99151.0,99150.0,0.08024756]
[1738687907428,2.10060379,99151.0,99150.0,0.08024756]
[1738687907661,2.10360379,99151.0,99150.0,0.08024756]
[1738687908083,2.10060379,99151.0,99150.0,0.08024756]
[1738687908310,2.19409851,99151.0,99150.0,0.08024756]
[1738687908520,2.20309851,99151.0,99150.0,0.08024756]
[1738687908913,2.21209851,99151.0,99150.0,0.08024756]
[1738687909319,2.10960379,99151.0,99150.0,0.08024756]
[1738687909519,2.11848379,99151.0,99150.0,0.08024756]
[1738687911920,2.10960379,99151.0,99150.0,0.08024756]
[1738687912129,2.00721873,99151.0,99150.0,0.08024756]
[1738687912338,1.88699873,99151.0,99150.0,0.08024756]
[1738687913052,1.73699873,99151.0,99150.0,0.10324756]
[1738687913485,1.72799873,99151.0,99150.0,0.10324756]
[1738687913656,1.70898164,99151.0,99150.0,0.10324756]
[1738687913874,1.71798164,99151.0,99150.0,0.10324756]
[1738687914073,1.651284,99151.0,99150.0,0.10324756]
[1738687914470,1.511,99151.0,99150.0,0.10324756]
[1738687914668,1.505,99151.0,99150.0,0.10324756]
[1738687914891,1.651284,99151.0,99150.0,0.10324756]
[1738687915124,1.657284,99151.0,99150.0,0.10324756]
[1738687915350,1.660284,99151.0,99150.0,0.10324756]
[1738687915800,1.657284,99151.0,99150.0,0.08024756]
[1738687916196,1.660284,99151.0,99150.0,0.08024756]
[1738687916402,1.810284,99151.0,99150.0,0.08024756]
[1738687916805,1.85886347,99151.0,99150.0,0.08024756]
[1738687917101,1.85286347,99151.0,99150.0,0.08024756]
[1738687917508,1.85586347,99151.0,99150.0,0.08024756]
[1738687917708,1.84986347,99151.0,99150.0,0.08024756]
[1738687917936,1.85286347,99151.0,99150.0,0.08024756]
[1738687918147,1.85886347,99151.0,99150.0,0.08024756]
[1738687918342,1.95235819,99151.0,99150.0,0.08024756]
[1738687918544,1.92646313,99151.0,99150.0,0.08024756]
[1738687918747,2.07654819,99151.0,99150.0,0.08024756]
[1738687919154,2.07254819,99151.0,99150.0,0.08024756]
[1738687919387,2.07754819,99151.0,99150.0,0.08024756]
[1738687920186,1.88166841,99151.0,99150.0,0.08024756]
[1738687920613,1.87266841,99151.0,99150.0,0.08024756]
[1738687920964,1.88166841,99151.0,99150.0,0.08024756]
[1738687921166,1.86766841,99151.0,99150.0,0.08024756]
[1738687921370,1.89757501,99151.0,99150.0,0.08024756]
[1738687921573,2.01806973,99151.0,99150.0,0.08024756]
[1738687921937,2.00906973,99151.0,99150.0,0.08024756]
[1738687922138,2.00896007,99151.0,99150.0,0.08024756]
[1738687923097,1.99996007,99151.0,99150.0,0.08024756]
[1738687923504,2.00896007,99151.0,99150.0,0.08024756]
[1738687923731,1.99996007,99151.0,99150.0,0.08024756]
[1738687924302,1.90657501,99151.0,99150.0,0.08024756]
[1738687924507,1.89757501,99151.0,99150.0,0.08024756]
[1738687924738,1.86387501,99151.0,99150.0,0.08024756]
[1738687924943,1.88535804,99151.0,99150.0,0.08024756]
[1738687925078,1.87135804,99151.0,99150.0,0.08024756]
[1738687925490,1.88035804,99151.0,99150.0,0.08024756]
[1738687925693,1.55759101,99151.0,99150.0,0.10324756]
[1738687925900,1.55759101,99151.0,99150.0,0.25453256]
[1738687926100,1.54859101,99151.0,99150.0,0.20711882]
[1738687926302,1.70487501,99151.0,99150.0,0.20711882]
[1738687926608,1.56259101,99151.0,99150.0,0.20563262]
[1738687926815,1.55359101,99151.0,99150.0,0.35691762]
[1738687927179,1.505,99151.0,99150.0,0.35840382]
[1738687927470,1.505,99151.0,99150.0,0.20711882]
[1738687927842,1.5,99151.0,99150.0,0.20711882]
[1738687928098,1.5,99151.0,99150.0,0.20563262]
[1738687928267,1.5,99151.0,99150.0,0.20711882]
[1738687928473,1.5,99151.0,99150.0,0.35840382]
[1738687929058,1.5,99151.0,99150.0,0.20711882]
[1738687929355,1.651284,99151.0,99150.0,0.10473376]
[1738687929506,1.5,99151.0,99150.0,0.10473376]
[1738687929713,1.651284,99151.0,99150.0,0.10324756]
[1738687930594,1.75377872,99151.0,99150.0,0.10324756]
[1738687930857,1.651284,99151.0,99150.0,0.10324756]
[1738687931289,1.70002751,99151.0,99150.0,0.08024756]
[1738687931510,1.85102751,99151.0,99150.0,0.08024756]
[1738687931803,1.95341257,99151.0,99150.0,0.08024756]
[1738687931949,2.05490729,99151.0,99150.0,0.08024756]
[1738687932338,2.05690729,99151.0,99150.0,0.08024756]
[1738687932744,2.05490729,99151.0,99150.0,0.08024756]
[1738687932943,1.80112857,99151.0,99142.0,0.00039279]
[1738687933163,1.80112857,99151.0,99116.0,0.0109199]
[1738687933164,0.301313,99132.0,99116.0,0.0109199]
[1738687933392,0.301324,99125.0,99124.0,6.701e-05]
[1738687933590,1.97285276,99125.0,99124.0,0.00011381]
[1738687934963,1.98185276,99125.0,99124.0,0.00011381]
[1738687935182,1.85906751,99125.0,99124.0,0.00011381]
[1738687935350,1.86794751,99125.0,99124.0,0.00011381]
[1738687935561,1.87804805,99125.0,99124.0,0.00011381]
[1738687935799,1.88204805,99125.0,99124.0,0.00011381]
[1738687936159,1.86904805,99125.0,99124.0,0.00011381]
[1738687936598,1.98554277,99125.0,99124.0,0.00011381]
[1738687936790,1.97654277,99125.0,99124.0,0.00011381]
[1738687937024,1.98554277,99125.0,99124.0,0.00011381]
[1738687938190,1.88304805,99125.0,99124.0,0.00011381]
[1738687938402,1.87804805,99125.0,99124.0,0.00011381]
[1738687938735,1.90676955,99125.0,99124.0,0.00011381]
[1738687939327,1.89776955,99125.0,99124.0,0.00011381]
[1738687939579,1.90676955,99125.0,99124.0,0.00011381]
[1738687939777,2.11164933,99125.0,99124.0,0.00011381]
[1738687939927,0.15,99124.0,99116.0,7.1e-07]
[1738687940131,0.301336,99117.0,99116.0,0.00014152]
[1738687940339,0.40372106,99117.0,99116.0,0.00014152]
[1738687940714,2.05495929,99117.0,99116.0,0.00014152]
[1738687941334,2.05495929,99117.0,99116.0,5.2e-07]
[1738687941950,2.13635929,99117.0,99116.0,5.2e-07]
[1738687942104,0.301362,99100.0,99095.0,0.0085463]
[1738687942308,0.301362,99100.0,99099.0,0.00057662]
[1738687943012,1.8201095,99100.0,99099.0,0.00057662]
[1738687943452,1.8291095,99100.0,99099.0,0.00057662]
[1738687943648,1.93160422,99100.0,99099.0,0.00057662]
[1738687943860,1.98060422,99100.0,99099.0,0.00057662]
[1738687944181,1.90810551,99100.0,99099.0,0.00057662]
[1738687944373,1.91210551,99100.0,99099.0,0.00057662]
[1738687944597,1.86310551,99100.0,99099.0,0.00057662]
[1738687945017,1.87333411,99100.0,99099.0,0.00057662]
[1738687945384,1.87821411,99100.0,99099.0,0.00057662]
[1738687945585,1.86033411,99100.0,99099.0,0.00057662]
[1738687945790,1.86533411,99100.0,99099.0,0.00057662]
[1738687945988,1.87433411,99100.0,99099.0,0.00057662]
[1738687946168,1.86533411,99100.0,99099.0,0.00057662]
[1738687946390,1.55374351,99100.0,99099.0,0.00057662]
[1738687946580,1.505,99100.0,99099.0,0.00057662]
[1738687946794,1.514,99100.0,99099.0,0.27732468]
[1738687946998,1.514,99100.0,99099.0,0.27884246]
[1738687947201,1.509,99100.0,99099.0,0.27884246]
[1738687947409,1.513,99100.0,99099.0,0.27884246]
[1738687947618,1.504,99100.0,99099.0,0.12747946]
[1738687947831,1.504,99100.0,99099.0,0.12596168]
[1738687948051,1.5,99100.0,99099.0,0.12596168]
[1738687948282,1.503,99100.0,99099.0,0.12596168]
[1738687948472,1.503,99100.0,99099.0,0.27732468]
[1738687948881,1.509,99100.0,99099.0,0.27883216]
[1738687949119,1.51,99100.0,99099.0,0.27883216]
[1738687949324,1.501,99100.0,99099.0,0.27883216]
[1738687949495,0.001,99100.0,99099.0,0.35843216]
[1738687949726,0.002,99100.0,99099.0,0.20706916]
[1738687949922,0.002,99100.0,99099.0,0.27883216]
[1738687950323,0.001,99100.0,99099.0,0.27883216]
[1738687950529,1.5,99109.0,99106.0,0.151352]
[1738687950707,1.5,99109.0,99107.0,0.12538506]
[1738687951315,1.5,99109.0,99099.0,0.00157662]
[1738687951515,0.15135,99108.0,99099.0,0.00157662]
[1738687951716,0.16418492,99110.0,99099.0,0.00157662]
[1738687951913,1.5,99100.0,99099.0,0.00157662]
[1738687952395,1.5,99100.0,99099.0,0.00057662]
[1738687952808,1.5,99100.0,99099.0,0.00157662]
[1738687953182,1.5,99100.0,99099.0,0.00057662]
[1738687953337,1.501,99100.0,99099.0,0.00057662]
[1738687953880,1.5,99100.0,99099.0,0.00057662]
[1738687954086,1.502,99100.0,99099.0,0.00057662]
[1738687954294,1.501,99100.0,99099.0,0.00057662]
[1738687954453,1.5,99100.0,99099.0,0.00057662]
[1738687954867,1.5,99100.0,99099.0,0.17493962]
[1738687955106,1.5,99100.0,99099.0,0.27881176]
[1738687955532,0.00888,99116.0,99110.0,0.151346]
[1738687955824,0.0894148,99133.0,99114.0,0.023]
[1738687956049,1.5,99115.0,99114.0,0.17434]
[1738687957161,0.0894148,99133.0,99130.0,0.174316]
[1738687957525,1.50022428,99131.0,99130.0,0.27670106]
[1738687958103,1.50022428,99131.0,99130.0,0.35520106]
[1738687958528,1.50122428,99131.0,99130.0,0.35534116]
[1738687959336,1.50122428,99131.0,99130.0,0.27684116]
[1738687960044,1.50022428,99131.0,99130.0,0.27784116]
[1738687961413,1.50022428,99131.0,99130.0,0.12652516]
[1738687961682,1.50022428,99131.0,99130.0,0.12801224]
[1738687961894,1.50022428,99131.0,99130.0,0.12652516]
[1738687962352,1.50022428,99131.0,99130.0,0.12552516]
[1738687962823,1.50022428,99131.0,99130.0,0.12652516]
[1738687966265,1.50022428,99131.0,99130.0,0.12552516]
[1738687966511,1.50122428,99131.0,99130.0,0.12552516]
[1738687966747,1.50222428,99131.0,99130.0,0.12552516]
[1738687967276,1.50122428,99131.0,99130.0,0.12552516]
[1738687968101,1.50022428,99131.0,99130.0,0.12552516]
[1738687969604,1.50122428,99131.0,99130.0,0.12552516]
[1738687969856,1.50222428,99131.0,99130.0,0.12552516]
[1738687970107,1.50022428,99131.0,99130.0,0.12552516]
[1738687970316,1.50122428,99131.0,99130.0,0.12552516]
[1738687970559,1.50222428,99131.0,99130.0,0.12552516]
[1738687970800,1.50022428,99131.0,99130.0,0.12552516]
[1738687971235,1.50122428,99131.0,99130.0,0.12552516]
[1738687971447,1.50022428,99131.0,99130.0,0.12552516]
[1738687971583,1.50222428,99131.0,99130.0,0.12552516]
[1738687973151,1.50022428,99131.0,99130.0,0.12552516]
[1738687973380,1.50222428,99131.0,99130.0,0.12552516]
[1738687973581,1.50122428,99131.0,99130.0,0.12552516]
[1738687973916,1.50222428,99131.0,99130.0,0.12552516]
[1738687974278,1.50022428,99131.0,99130.0,0.12552516]
[1738687974617,1.50222428,99131.0,99130.0,0.12552516]
[1738687976070,1.50122428,99131.0,99130.0,0.12552516]
[1738687976472,1.50222428,99131.0,99130.0,0.0001401]
[1738687976631,1.65353828,99131.0,99130.0,0.0001401]
[1738687977044,1.65153828,99131.0,99130.0,0.0001401]
[1738687977252,1.87933828,99131.0,99130.0,0.0001401]
[1738687977472,1.89807638,99131.0,99130.0,0.0001401]
[1738687977679,1.94577638,99131.0,99130.0,0.0001401]
[1738687977841,2.04816144,99131.0,99130.0,1e-07]
[1738687978062,2.15765616,99131.0,99130.0,1e-07]
[1738687978267,0.301336,99117.0,99116.0,0.0001068]
[1738687978467,0.426836,99117.0,99116.0,0.0001068]
[1738687978719,0.4455741,99117.0,99116.0,0.0001068]
[1738687979124,1.9455741,99117.0,99116.0,0.0001068]
[1738687979529,2.04806882,99117.0,99116.0,0.0001068]
[1738687979953,1.97552882,99117.0,99116.0,0.0001068]
[1738687980526,1.98452882,99117.0,99116.0,0.0001068]
[1738687981102,1.96889491,99117.0,99116.0,0.0001068]
[1738687981485,0.0227381,99117.0,99116.0,0.0001068]
[1738687981729,0.0187381,99117.0,99116.0,0.10249186]
[1738687981933,0.0187381,99117.0,99116.0,0.12549186]
[1738687982146,0.0277381,99117.0,99116.0,0.12701103]
[1738687982752,0.018,99117.0,99116.0,0.27834803]
[1738687983173,0.009,99117.0,99116.0,0.27834803]
[1738687983380,0.009,99117.0,99116.0,0.12801103]
[1738687983787,0.009,99117.0,99116.0,0.27934803]
[1738687983972,0.00036431,99131.0,99117.0,0.023]
[1738687984206,0.00036431,99131.0,99116.0,0.12801103]
[1738687984207,0.10931984,99130.0,99118.0,0.10238506]
[1738687984418,0.00036431,99131.0,99119.0,0.023]
[1738687984649,0.00036431,99131.0,99116.0,0.2028878]
[1738687984650,0.00036431,99131.0,99121.0,0.023]
[1738687984860,0.00036431,99131.0,99130.0,0.174316]
[1738687985077,1.50036431,99131.0,99130.0,0.12538506]
[1738687985504,1.50036431,99131.0,99130.0,0.12685289]
[1738687985684,1.50036431,99131.0,99104.0,0.01034015]
[1738687985884,0.16404863,99130.0,99107.0,0.2019068]
[1738687986013,0.01909753,99131.0,99116.0,0.0011068]
[1738687986014,0.02109753,99131.0,99116.0,0.0011068]
[1738687986218,0.02109753,99131.0,99129.0,0.023]
[1738687986427,1.5,99130.0,99129.0,0.174317]
[1738687986631,1.5,99130.0,99129.0,0.023]
[1738687987501,1.5,99130.0,99129.0,0.27670206]
[1738687987705,0.003,99130.0,99129.0,0.27670206]
[1738687989178,0.00036431,99131.0,99130.0,0.174316]